[Event "10th Sharjah Cup Women 2020"]
[Site "Sharjah"]
[Date "2020.01.06"]
[Round "3.7"]
[White "Pujari, Rucha"]
[Black "Rapport, Jovana"]
[Result "1/2-1/2"]
[ECO "A45"]
[WhiteElo "2187"]
[BlackElo "2333"]
[Annotator "ChessBase"]
[PlyCount "99"]
[EventDate "2020.01.04"]
[EventType "swiss"]
[EventCountry "UAE"]
[SourceTitle "playchess.com"]
[Source "ChessBase"]
[SourceQuality "1"]
[TimeControl "5400+30"]

1. d4 {[%emt 0:00:00]} Nf6 {[%emt 0:00:00]} 2. g3 {[%emt 0:00:29]} c5 {[%emt 0:00:19]} 3. d5 {[%emt 0:00:45]} b5 {[%emt 0:00:20]} 4. Bg2 {[%emt 0:01:20]} d6 {[%emt 0:00:09]} 5. a4 {[%emt 0:02:20]} b4 {[%emt 0:00:40]} 6. c4 {[%emt 0:00:24]} g6 {[%emt 0:02:40]} 7. b3 {[%emt 0:01:29]} Bg7 {[%emt 0:00:35]} 8. Bb2 {[%emt 0:00:51]} O-O {[%emt 0:03:38]} 9. Nd2 {[%emt 0:02:46]} a5 {[%emt 0:01:14]} 10. Qc2 {[%emt 0:12:40]} Ra7 {[%emt 0:01:42]} 11. e4 {[%emt 0:07:54]} e6 {[%emt 0:01:44]} 12. Ne2 {[%emt 0:03:47]} exd5 {[%emt 0:02:07]} 13. cxd5 {[%emt 0:00:25]} Re8 {[%emt 0:03:06]} 14. Nc4 {[%emt 0:02:40]} Rae7 {[%emt 0:05:09]} 15. Bxf6 {[%emt 0:06:44]} Bxf6 {[%emt 0:00:03]} 16. Rd1 {[%emt 0:00:01]} Bg7 {[%emt 0:13:13]} 17. O-O {[%emt 0:10:19]} Ba6 {[%emt 0:03:09]} 18. f4 {[%emt 0:13:20]} Bxc4 {[%emt 0:13:20]} 19. Qxc4 {[%emt 0:00:51]} Nd7 {[%emt 0:00:05]} 20. h3 {[%emt 0:05:55]} Kh8 {[%emt 0:10:04]} 21. g4 {[%emt 0:01:52]} Qb6 {[%emt 0:03:40]} 22. Kh1 {[%emt 0:01:37]} Ra8 {[%emt 0:00:16]} 23. e5 {[%emt 0:03:55]} Qa6 {[%emt 0:01:05]} 24. Qc2 {[%emt 0:00:02]} Rc8 {[%emt 0:04:21]} 25. Ng3 {[%emt 0:01:17]} dxe5 {[%emt 0:01:49]} 26. f5 {[%emt 0:01:11]} c4 {[%emt 0:02:25]} 27. d6 {[%emt 0:06:28]} Ree8 {[%emt 0:00:05]} 28. Ne4 {[%emt 0:00:57]} f6 {[%emt 0:05:43]} 29. fxg6 {[%emt 0:04:20]} cxb3 {[%emt 0:02:18]} 30. Qxb3 {[%emt 0:01:03]} Qc4 {[%emt 0:00:35]} 31. Qxc4 {[%emt 0:02:44]} Rxc4 {[%emt 0:00:05]} 32. g5 {[%emt 0:00:29]} hxg6 {[%emt 0:01:37]} 33. gxf6 {[%emt 0:00:31]} Bh6 {[%emt 0:00:02]} 34. Rd5 {[%emt 0:02:36]} b3 {[%emt 0:02:41]} 35. Rb5 {[%emt 0:00:52]} Rb8 {[%emt 0:00:45]} 36. Rxb8+ {[%emt 0:00:23]} Nxb8 {[%emt 0:00:01]} 37. f7 {[%emt 0:00:01]} Nd7 {[%emt 0:00:37]} 38. Rb1 {[%emt 0:03:00]} Kg7 {[%emt 0:06:48]} 39. Rxb3 {[%emt 0:00:36]} Rc1+ {[%emt 0:00:04]} 40. Kh2 {[%emt 0:00:06]} Bf4+ {[%emt 0:01:03]} 41. Ng3 {[%emt 0:00:03]} Kxf7 {[%emt 0:00:03]} 42. Bd5+ {[%emt 0:00:33]} Kf6 {[%emt 0:01:36]} 43. Kg2 {[%emt 0:00:53]} Nc5 {[%emt 0:03:25]} 44. Ne4+ {[%emt 0:00:40]} Nxe4 {[%emt 0:02:44]} 45. Bxe4 {[%emt 0:00:02]} Ke6 {[%emt 0:00:03]} 46. Rd3 {[%emt 0:00:56]} Rc2+ {[%emt 0:00:45]} 47. Kf3 {[%emt 0:00:43]} Rh2 {[%emt 0:02:26]} 48. Kg4 {[%emt 0:00:36]} Rd2 {[%emt 0:01:30]} 49. Rxd2 {[%emt 0:00:26]} Bxd2 {[%emt 0:00:01]} 50. Bxg6 1/2-1/2

[Event "10th Sharjah Cup Women 2020"]
[Site "Sharjah"]
[Date "2020.01.06"]
[Round "3.8"]
[White "Dordzhieva, Dinara"]
[Black "Drljevic, Ljilja"]
[Result "1-0"]
[ECO "E97"]
[WhiteElo "2326"]
[BlackElo "2193"]
[Annotator "ChessBase"]
[PlyCount "89"]
[EventDate "2020.01.04"]
[EventType "swiss"]
[EventCountry "UAE"]
[SourceTitle "playchess.com"]
[Source "ChessBase"]
[SourceQuality "1"]
[TimeControl "5400+30"]

1. d4 {[%emt 0:00:00]} d6 {[%emt 0:00:00]} 2. Nf3 {[%emt 0:00:00]} Nf6 {[%emt 0:00:00]} 3. c4 {[%emt 0:00:00]} g6 {[%emt 0:00:01]} 4. Nc3 {[%emt 0:00:04]} Bg7 {[%emt 0:00:06]} 5. e4 {[%emt 0:00:09]} O-O {[%emt 0:00:19]} 6. Be2 {[%emt 0:00:24]} e5 {[%emt 0:01:39]} 7. O-O {[%emt 0:00:35]} Nc6 {[%emt 0:02:24]} 8. d5 {[%emt 0:00:20]} Ne7 {[%emt 0:00:23]} 9. Bg5 {[%emt 0:00:04]} h6 {[%emt 0:22:23]} 10. Bd2 {[%emt 0:00:36]} Nh7 {[%emt 0:00:48]} 11. Qc2 {[%emt 0:03:29]} f5 {[%emt 0:01:31]} 12. exf5 {[%emt 0:00:07]} Nxf5 {[%emt 0:12:21]} 13. Ne4 {[%emt 0:04:51]} g5 {[%emt 0:17:08]} 14. h3 {[%emt 0:06:44]} Nf6 {[%emt 0:02:03]} 15. Bc3 {[%emt 0:12:51]} Bd7 {[%emt 0:07:01]} 16. Rae1 {[%emt 0:05:30]} Nxe4 {[%emt 0:03:11]} 17. Qxe4 {[%emt 0:00:08]} Ne7 {[%emt 0:00:47]} 18. Bd3 {[%emt 0:02:32]} Bf5 {[%emt 0:00:46]} 19. Qe2 {[%emt 0:01:58]} Ng6 {[%emt 0:02:32]} 20. Bxf5 {[%emt 0:02:44]} Rxf5 {[%emt 0:00:03]} 21. g3 {[%emt 0:00:27]} Qd7 {[%emt 0:03:05]} 22. Nd2 {[%emt 0:01:41]} Raf8 {[%emt 0:00:42]} 23. Kg2 {[%emt 0:05:18]} Qf7 {[%emt 0:02:07]} 24. Ne4 {[%emt 0:01:10]} Rf3 {[%emt 0:02:20]} 25. Nd2 {[%emt 0:03:49]} Rf5 {[%emt 0:00:36]} 26. Rd1 {[%emt 0:02:55]} Qd7 {[%emt 0:02:34]} 27. Qg4 {[%emt 0:05:48]} Qf7 {[%emt 0:05:42]} 28. Ne4 {[%emt 0:00:17]} h5 {[%emt 0:04:23]} 29. Qe2 {[%emt 0:00:35]} b6 {[%emt 0:01:31]} 30. Kg1 {[%emt 0:02:01]} h4 {[%emt 0:00:43]} 31. Bd2 {[%emt 0:00:52]} Qe7 {[%emt 0:00:44]} 32. Qg4 {[%emt 0:01:41]} Bh6 {[%emt 0:00:27]} 33. b4 {[%emt 0:02:48]} Kh7 {[%emt 0:00:36]} 34. Be3 {[%emt 0:02:12]} Nf4 {[%emt 0:01:54]} 35. Rfe1 {[%emt 0:03:46]} Qf7 {[%emt 0:00:22]} 36. Kh2 {[%emt 0:03:38]} Nh5 {[%emt 0:01:13]} 37. c5 {[%emt 0:02:16]} Qg6 {[%emt 0:00:11]} 38. cxd6 {[%emt 0:07:23]} cxd6 {[%emt 0:00:14]} 39. gxh4 {[%emt 0:05:07]} gxh4 {[%emt 0:00:28]} 40. Rg1 {[%emt 0:00:36]} Qxg4 {[%emt 0:01:35]} 41. hxg4 {[%emt 0:00:27]} Bxe3 {[%emt 0:01:15]} 42. gxf5 {[%emt 0:00:11]} Bd4 {[%emt 0:01:00]} 43. Rg5 {[%emt 0:00:41]} Nf4 {[%emt 0:01:23]} 44. Rdg1 {[%emt 0:00:15]} a5 {[%emt 0:00:54]} 45. R1g4 {[%emt 0:00:23]} 1-0

[Event "10th Sharjah Cup Women 2020"]
[Site "Sharjah"]
[Date "2020.01.06"]
[Round "3.9"]
[White "Michelle Catherina, P."]
[Black "Heinemann, Josefine"]
[Result "1-0"]
[ECO "B90"]
[WhiteElo "2143"]
[BlackElo "2317"]
[Annotator "ChessBase"]
[PlyCount "73"]
[EventDate "2020.01.04"]
[EventType "swiss"]
[EventCountry "UAE"]
[SourceTitle "playchess.com"]
[Source "ChessBase"]
[SourceQuality "1"]
[TimeControl "5400+30"]

1. e4 {[%emt 0:01:20]} c5 {[%emt 0:00:00]} 2. Nf3 {[%emt 0:00:05]} d6 {[%emt 0:00:00]} 3. d4 {[%emt 0:00:05]} cxd4 {[%emt 0:00:00]} 4. Nxd4 {[%emt 0:00:05]} Nf6 {[%emt 0:00:00]} 5. Nc3 {[%emt 0:00:08]} a6 {[%emt 0:00:00]} 6. h3 {[%emt 0:00:14]} e6 {[%emt 0:00:18]} 7. g4 {[%emt 0:00:06]} h6 {[%emt 0:00:07]} 8. Bg2 {[%emt 0:00:20]} Be7 {[%emt 0:00:06]} 9. Be3 {[%emt 0:00:26]} Nc6 {[%emt 0:01:04]} 10. f4 {[%emt 0:02:15]} Nd7 {[%emt 0:00:31]} 11. O-O {[%emt 0:00:34]} O-O {[%emt 0:00:45]} 12. Nce2 {[%emt 0:04:17]} Nxd4 {[%emt 0:02:11]} 13. Qxd4 {[%emt 0:06:42]} Rb8 {[%emt 0:07:51]} 14. Qd2 {[%emt 0:01:59]} b5 {[%emt 0:04:40]} 15. Rad1 {[%emt 0:01:21]} Qc7 {[%emt 0:03:42]} 16. f5 {[%emt 0:04:40]} Bb7 {[%emt 0:10:36]} 17. Ng3 {[%emt 0:18:41]} Nf6 {[%emt 0:07:31]} 18. Bxh6 {[%emt 0:13:49]} gxh6 {[%emt 0:02:59]} 19. Qxh6 {[%emt 0:01:01]} Qc5+ {[%emt 0:01:58]} 20. Kh1 {[%emt 0:05:36]} Qe5 {[%emt 0:08:35]} 21. g5 {[%emt 0:04:03]} Nh7 {[%emt 0:12:37]} 22. f6 {[%emt 0:11:17]} Qxg5 {[%emt 0:08:07]} 23. Qxg5+ {[%emt 0:00:15]} Nxg5 {[%emt 0:00:04]} 24. fxe7 {[%emt 0:00:10]} Rfe8 {[%emt 0:00:05]} 25. Rf4 {[%emt 0:03:29]} Nh7 {[%emt 0:02:09]} 26. Rg4+ {[%emt 0:01:37]} Kh8 {[%emt 0:00:05]} 27. Rxd6 {[%emt 0:01:09]} Rxe7 {[%emt 0:00:06]} 28. Nh5 {[%emt 0:04:16]} Rc7 {[%emt 0:04:23]} 29. e5 {[%emt 0:02:25]} Bxg2+ {[%emt 0:01:21]} 30. Rxg2 {[%emt 0:00:14]} a5 {[%emt 0:02:30]} 31. Rgd2 {[%emt 0:04:32]} Ng5 {[%emt 0:02:02]} 32. Nf6 {[%emt 0:01:19]} Kg7 {[%emt 0:04:48]} 33. Rg2 {[%emt 0:04:04]} Kh6 {[%emt 0:00:05]} 34. Rd3 {[%emt 0:01:31]} Rc4 {[%emt 0:02:06]} 35. Rdg3 {[%emt 0:01:14]} Ne4 {[%emt 0:00:22]} 36. Ng8+ {[%emt 0:00:40]} Kh5 {[%emt 0:01:27]} 37. Rg7 {[%emt 0:00:14]} 1-0

[Event "10th Sharjah Cup Women 2020"]
[Site "Sharjah"]
[Date "2020.01.06"]
[Round "3.10"]
[White "Li, Xueyi"]
[Black "Babayan, Armine"]
[Result "1-0"]
[ECO "A05"]
[WhiteElo "2307"]
[BlackElo "2186"]
[Annotator "ChessBase"]
[PlyCount "65"]
[EventDate "2020.01.04"]
[EventType "swiss"]
[EventCountry "UAE"]
[SourceTitle "playchess.com"]
[Source "ChessBase"]
[SourceQuality "1"]
[TimeControl "5400+30"]

1. Nf3 {[%emt 0:00:00]} Nf6 {[%emt 0:00:00]} 2. d4 {[%emt 0:00:00]} d6 {[%emt 0:00:00]} 3. g3 {[%emt 0:00:05]} c6 {[%emt 0:00:14]} 4. Bg2 {[%emt 0:01:32]} Nbd7 {[%emt 0:01:34]} 5. O-O {[%emt 0:17:34]} e5 {[%emt 0:00:23]} 6. c4 {[%emt 0:02:36]} e4 {[%emt 0:05:16]} 7. Ng5 {[%emt 0:01:00]} d5 {[%emt 0:00:37]} 8. cxd5 {[%emt 0:00:06]} cxd5 {[%emt 0:00:05]} 9. Nc3 {[%emt 0:00:59]} h6 {[%emt 0:20:32]} 10. Nh3 {[%emt 0:00:25]} g5 {[%emt 0:00:05]} 11. f3 {[%emt 0:03:42]} Nb6 {[%emt 0:09:25]} 12. fxe4 {[%emt 0:02:26]} Nxe4 {[%emt 0:00:28]} 13. Qb3 {[%emt 0:14:09]} Nxc3 {[%emt 0:05:38]} 14. bxc3 {[%emt 0:00:37]} Be6 {[%emt 0:01:17]} 15. Nf2 {[%emt 0:00:20]} Qc7 {[%emt 0:00:21]} 16. a4 {[%emt 0:07:33]} Rc8 {[%emt 0:04:08]} 17. a5 {[%emt 0:01:45]} Nc4 {[%emt 0:00:50]} 18. e4 {[%emt 0:01:35]} dxe4 {[%emt 0:03:40]} 19. Nxe4 {[%emt 0:00:21]} Be7 {[%emt 0:03:12]} 20. Qd1 {[%emt 0:02:38]} f5 {[%emt 0:03:32]} 21. Qh5+ {[%emt 0:12:06]} Bf7 {[%emt 0:01:15]} 22. Qf3 {[%emt 0:01:03]} Bg6 {[%emt 0:03:42]} 23. Nf2 {[%emt 0:01:14]} Nxa5 {[%emt 0:05:51]} 24. Re1 {[%emt 0:01:33]} Kf8 {[%emt 0:08:35]} 25. Qd5 {[%emt 0:10:54]} b6 {[%emt 0:08:06]} 26. Rxe7 {[%emt 0:01:25]} Kxe7 {[%emt 0:01:59]} 27. Ba3+ {[%emt 0:00:08]} Kf6 {[%emt 0:02:22]} 28. Bd6 {[%emt 0:00:08]} Bf7 {[%emt 0:00:26]} 29. Qe5+ {[%emt 0:00:08]} Kg6 {[%emt 0:00:01]} 30. Bxc7 {[%emt 0:00:11]} Rhe8 {[%emt 0:00:34]} 31. Qd6+ {[%emt 0:00:25]} Re6 {[%emt 0:00:03]} 32. Qd7 {[%emt 0:00:20]} Rce8 {[%emt 0:00:37]} 33. Be5 {[%emt 0:00:23]} 1-0

[Event "10th Sharjah Cup Women 2020"]
[Site "Sharjah"]
[Date "2020.01.06"]
[Round "3.11"]
[White "Soyunlu, Narmin"]
[Black "Abdulla, Khayala"]
[Result "1/2-1/2"]
[ECO "A46"]
[WhiteElo "2020"]
[BlackElo "2275"]
[Annotator "ChessBase"]
[PlyCount "33"]
[EventDate "2020.01.04"]
[EventType "swiss"]
[EventCountry "UAE"]
[SourceTitle "playchess.com"]
[Source "ChessBase"]
[SourceQuality "1"]
[TimeControl "5400+30"]

1. d4 {[%emt 0:00:00]} Nf6 {[%emt 0:00:00]} 2. Nf3 {[%emt 0:00:00]} e6 {[%emt 0:00:01]} 3. Bf4 {[%emt 0:00:09]} d5 {[%emt 0:01:28]} 4. e3 {[%emt 0:04:02]} Bd6 {[%emt 0:00:50]} 5. Bg3 {[%emt 0:00:44]} O-O {[%emt 0:02:52]} 6. Nbd2 {[%emt 0:00:54]} c5 {[%emt 0:01:25]} 7. c3 {[%emt 0:00:40]} Nc6 {[%emt 0:00:46]} 8. Bd3 {[%emt 0:01:09]} Qe7 {[%emt 0:02:02]} 9. O-O {[%emt 0:02:01]} Bxg3 {[%emt 0:05:24]} 10. hxg3 {[%emt 0:00:09]} e5 {[%emt 0:00:16]} 11. dxe5 {[%emt 0:00:57]} Nxe5 {[%emt 0:04:39]} 12. Nxe5 {[%emt 0:01:12]} Qxe5 {[%emt 0:00:07]} 13. Nf3 {[%emt 0:00:20]} Qe7 {[%emt 0:00:41]} 14. Nd2 {[%emt 0:01:08]} Qe5 {[%emt 0:00:29]} 15. Nf3 {[%emt 0:00:09]} Qe7 {[%emt 0:00:20]} 16. Nd2 {[%emt 0:00:08]} Qe5 {[%emt 0:00:07]} 17. Nf3 {[%emt 0:00:07]} 1/2-1/2

[Event "10th Sharjah Cup Women 2020"]
[Site "Sharjah"]
[Date "2020.01.06"]
[Round "3.12"]
[White "Kubicka, Anna"]
[Black "Asatryan, Sona"]
[Result "1/2-1/2"]
[ECO "C92"]
[WhiteElo "2258"]
[BlackElo "2085"]
[Annotator "ChessBase"]
[PlyCount "155"]
[EventDate "2020.01.04"]
[EventType "swiss"]
[EventCountry "UAE"]
[SourceTitle "playchess.com"]
[Source "ChessBase"]
[SourceQuality "1"]
[TimeControl "5400+30"]

1. e4 {[%emt 0:00:00]} e5 {[%emt 0:00:00]} 2. Nf3 {[%emt 0:00:00]} Nc6 {[%emt 0:00:00]} 3. Bb5 {[%emt 0:00:00]} a6 {[%emt 0:00:00]} 4. Ba4 Nf6 {[%emt 0:00:00]} 5. O-O {[%emt 0:00:00]} Be7 {[%emt 0:00:09]} 6. Re1 {[%emt 0:00:02]} b5 {[%emt 0:00:16]} 7. Bb3 {[%emt 0:00:05]} d6 {[%emt 0:00:18]} 8. c3 {[%emt 0:00:04]} O-O {[%emt 0:00:20]} 9. h3 {[%emt 0:00:04]} Nd7 {[%emt 0:00:20]} 10. d4 {[%emt 0:00:19]} Bf6 {[%emt 0:00:24]} 11. Be3 {[%emt 0:05:51]} Na5 {[%emt 0:07:15]} 12. Bc2 {[%emt 0:01:01]} c5 {[%emt 0:06:46]} 13. Nbd2 {[%emt 0:04:35]} exd4 {[%emt 0:04:00]} 14. cxd4 {[%emt 0:00:07]} Nc6 {[%emt 0:00:32]} 15. e5 {[%emt 0:17:52]} dxe5 {[%emt 0:12:50]} 16. dxe5 {[%emt 0:09:46]} Ncxe5 {[%emt 0:04:53]} 17. Nxe5 {[%emt 0:08:59]} Bxe5 {[%emt 0:03:22]} 18. Bxc5 {[%emt 0:10:07]} Bh2+ {[%emt 0:07:16]} 19. Kxh2 {[%emt 0:00:35]} Nxc5 {[%emt 0:02:09]} 20. Kg1 {[%emt 0:03:17]} g6 {[%emt 0:01:17]} 21. b4 {[%emt 0:06:49]} Ne6 {[%emt 0:02:50]} 22. Bb3 {[%emt 0:04:09]} Qd4 {[%emt 0:16:13]} 23. Ne4 {[%emt 0:06:01]} Qxb4 {[%emt 0:06:37]} 24. Qf3 {[%emt 0:00:30]} Ra7 {[%emt 0:01:25]} 25. Nf6+ {[%emt 0:01:38]} Kg7 {[%emt 0:02:07]} 26. Nd5 {[%emt 0:02:16]} Qh4 {[%emt 0:02:57]} 27. Re4 {[%emt 0:02:03]} Qd8 {[%emt 0:01:59]} 28. Rd1 {[%emt 0:00:32]} Ng5 {[%emt 0:02:52]} 29. Qc3+ {[%emt 0:01:22]} f6 {[%emt 0:00:33]} 30. Rf4 {[%emt 0:02:08]} Rd7 {[%emt 0:04:24]} 31. Re1 {[%emt 0:04:19]} Bb7 {[%emt 0:02:25]} 32. h4 {[%emt 0:03:27]} Rxd5 {[%emt 0:03:23]} 33. Bxd5 {[%emt 0:02:57]} Qxd5 {[%emt 0:00:11]} 34. Re7+ {[%emt 0:00:25]} Kg8 {[%emt 0:01:44]} 35. Rxb7 {[%emt 0:00:07]} Nh3+ {[%emt 0:00:38]} 36. Qxh3 {[%emt 0:00:57]} Qxb7 {[%emt 0:00:04]} 37. Qe6+ {[%emt 0:00:14]} Kg7 {[%emt 0:00:57]} 38. Rd4 {[%emt 0:01:22]} Rf7 {[%emt 0:00:30]} 39. Rd8 {[%emt 0:02:27]} Qe7 {[%emt 0:02:08]} 40. Qc8 {[%emt 0:00:51]} Rf8 {[%emt 0:00:54]} 41. Rxf8 {[%emt 0:00:12]} Qxf8 {[%emt 0:00:04]} 42. Qxa6 {[%emt 0:00:06]} Qc5 {[%emt 0:02:17]} 43. g3 {[%emt 0:00:20]} Qc1+ {[%emt 0:00:55]} 44. Kg2 {[%emt 0:00:05]} Qc5 {[%emt 0:00:24]} 45. Qb7+ {[%emt 0:00:08]} Kg8 {[%emt 0:00:24]} 46. Qe4 {[%emt 0:00:15]} Kg7 {[%emt 0:00:37]} 47. Qe6 {[%emt 0:00:46]} Qc7 {[%emt 0:00:45]} 48. Qd5 {[%emt 0:00:29]} Qb6 {[%emt 0:00:25]} 49. Qd7+ {[%emt 0:00:05]} Kg8 {[%emt 0:00:03]} 50. Qe8+ {[%emt 0:00:11]} Kg7 {[%emt 0:00:06]} 51. Qe7+ {[%emt 0:00:03]} Kg8 {[%emt 0:00:06]} 52. h5 {[%emt 0:00:57]} Qc6+ {[%emt 0:00:38]} 53. Kh2 {[%emt 0:00:02]} gxh5 {[%emt 0:00:49]} 54. a3 {[%emt 0:00:04]} Qf3 {[%emt 0:01:12]} 55. Qe8+ {[%emt 0:01:00]} Kg7 {[%emt 0:00:03]} 56. Qxb5 {[%emt 0:00:24]} Qxa3 {[%emt 0:00:38]} 57. Qxh5 {[%emt 0:00:11]} Qb2 {[%emt 0:00:27]} 58. Qf5 {[%emt 0:00:05]} Qd2 {[%emt 0:00:25]} 59. Kg2 {[%emt 0:00:16]} Qd6 {[%emt 0:00:16]} 60. Qg4+ {[%emt 0:00:41]} Kf7 {[%emt 0:00:21]} 61. Qe4 {[%emt 0:00:07]} Kg7 {[%emt 0:00:09]} 62. Kh3 {[%emt 0:00:06]} Qc5 {[%emt 0:00:12]} 63. Qg4+ {[%emt 0:00:20]} Kf7 {[%emt 0:00:18]} 64. Qd7+ {[%emt 0:01:02]} Kg6 {[%emt 0:00:16]} 65. Qd3+ {[%emt 0:00:36]} Kg7 {[%emt 0:00:12]} 66. f4 {[%emt 0:00:12]} Qh5+ {[%emt 0:00:47]} 67. Kg2 {[%emt 0:00:03]} Qg4 {[%emt 0:00:11]} 68. Qe3 {[%emt 0:00:44]} Qd7 {[%emt 0:00:19]} 69. Qe4 {[%emt 0:00:15]} Qd2+ {[%emt 0:00:17]} 70. Kh3 {[%emt 0:00:12]} Qd1 {[%emt 0:01:11]} 71. Qe7+ {[%emt 0:02:13]} Kg6 {[%emt 0:00:19]} 72. Qe4+ {[%emt 0:00:40]} Kg7 {[%emt 0:00:06]} 73. f5 {[%emt 0:02:09]} Qd7 {[%emt 0:01:02]} 74. Kh4 {[%emt 0:00:47]} Qf7 {[%emt 0:00:45]} 75. Qd4 {[%emt 0:00:56]} Qb7 {[%emt 0:00:15]} 76. Qg4+ {[%emt 0:01:15]} Kf8 {[%emt 0:00:59]} 77. Qd1 {[%emt 0:00:44]} Kg7 {[%emt 0:01:31]} 78. Qg4+ 1/2-1/2

[Event "10th Sharjah Cup Women 2020"]
[Site "Sharjah"]
[Date "2020.01.06"]
[Round "3.13"]
[White "Socko, Monika"]
[Black "Samaganova, Alexandra"]
[Result "1-0"]
[ECO "B41"]
[WhiteElo "2413"]
[BlackElo "2008"]
[Annotator "RC"]
[PlyCount "95"]
[EventDate "2020.01.04"]
[EventType "swiss"]
[EventCountry "UAE"]
[SourceTitle "playchess.com"]
[Source "ChessBase"]
[SourceQuality "1"]
[TimeControl "5400+30"]

1. e4 {[%emt 0:00:00]} c5 {[%emt 0:00:00]} 2. Nf3 {[%emt 0:00:00]} e6 {[%emt 0:00:00]} 3. d4 {[%emt 0:00:00]} cxd4 {[%emt 0:00:02]} 4. Nxd4 {[%emt 0:00:00]} a6 {[%emt 0:00:22]} 5. c4 {[%emt 0:00:20]} Qc7 {[%emt 0:00:31]} 6. Nc3 {[%emt 0:01:09]} Nf6 {[%emt 0:00:38]} 7. Qd3 {[%emt 0:00:20]} d6 {[%emt 0:03:27]} 8. Be2 {[%emt 0:05:47]} b6 {[%emt 0:04:31]} 9. O-O {[%emt 0:11:29]} Bb7 {[%emt 0:02:11]} 10. f3 {[%emt 0:00:35]} Nbd7 {[%emt 0:00:43]} 11. b3 {[%emt 0:01:57]} Be7 {[%emt 0:01:03]} 12. Bb2 {[%emt 0:00:52]} O-O {[%emt 0:01:03]} 13. Rac1 {[%emt 0:00:25]} Rac8 {[%emt 0:00:55]} 14. Kh1 {[%emt 0:01:11]} Qb8 {[%emt 0:02:39]} 15. Qe3 {[%emt 0:03:36]} Qa8 {[%emt 0:10:47]} 16. Rfd1 {[%emt 0:10:44]} h6 {[%emt 0:15:14]} 17. Rc2 {[%emt 0:07:16]} Bd8 {[%emt 0:18:36]} 18. Ba3 {[%emt 0:12:23]} Bc7 {[%emt 0:01:00]} 19. Rcd2 {[%emt 0:00:41]} Rfe8 {[%emt 0:02:33]} 20. Qf2 {[%emt 0:02:24]} Qb8 {[%emt 0:05:32]} 21. Bf1 {[%emt 0:05:47]} Rcd8 {[%emt 0:06:46]} 22. Nde2 {[%emt 0:02:53]} Nf8 {[%emt 0:03:00]} 23. Bb2 {[%emt 0:02:46]} Bc6 {[%emt 0:04:56]} 24. b4 {[%emt 0:01:31]} e5 {[%emt 0:04:55]} 25. Ng3 {[%emt 0:03:34]} Bd7 {[%emt 0:03:45]} 26. Nf5 {[%emt 0:06:21]} Bxf5 {[%emt 0:02:33]} 27. exf5 {[%emt 0:00:01]} Qb7 {[%emt 0:00:28]} 28. Bd3 {[%emt 0:00:53]} N8h7 {[%emt 0:01:23]} 29. Be4 {[%emt 0:02:10]} Nxe4 {[%emt 0:01:34]} 30. fxe4 {[%emt 0:00:22]} Nf6 {[%emt 0:00:29]} 31. Qe2 {[%emt 0:01:33]} Rc8 {[%emt 0:01:13]} 32. Nd5 {[%emt 0:09:27]} Nxd5 {[%emt 0:00:14]} 33. Rxd5 {[%emt 0:00:09]} Bb8 {[%emt 0:02:46]} 34. f6 {[%emt 0:00:20]} gxf6 {[%emt 0:00:36]} 35. Qg4+ {[%emt 0:01:14]} Kf8 {[%emt 0:00:28]} 36. Bc1 {[%emt 0:01:38]} Ke7 {[%emt 0:00:34]} 37. Bxh6 {[%emt 0:00:37]} Rg8 {[%emt 0:00:28]} 38. Bg7 {[%emt 0:00:50]} Qc6 {[%emt 0:00:33]} 39. Rf1 {[%emt 0:01:29]} Qxc4 {[%emt 0:00:21]} 40. Bxf6+ {[%emt 0:00:41]} Kf8 {[%emt 0:00:03]} 41. Qf3 {[%emt 0:00:04]} Qc7 {[%emt 0:00:47]} 42. Rd2 {[%emt 0:00:48]} Qb7 {[%emt 0:00:46]} 43. Rdf2 {[%emt 0:01:52]} Rc7 {[%emt 0:00:31]} 44. h4 {[%emt 0:00:40]} b5 {[%emt 0:00:16]} 45. h5 {[%emt 0:01:12]} Qc8 {[%emt 0:00:45]} 46. h6 {[%emt 0:00:24]} Rg6 {[%emt 0:00:31]} 47. Qh5 {[%emt 0:00:34]} Rc1 {[%emt 0:00:30]} 48. h7 {[%emt 0:00:22]} 1-0

[Event "10th Sharjah Cup Women 2020"]
[Site "Sharjah"]
[Date "2020.01.06"]
[Round "3.14"]
[White "Radeva, Viktoria"]
[Black "Dhyana Patel"]
[Result "1-0"]
[ECO "B38"]
[WhiteElo "2338"]
[BlackElo "1969"]
[Annotator "ChessBase"]
[PlyCount "71"]
[EventDate "2020.01.04"]
[EventType "swiss"]
[EventCountry "UAE"]
[SourceTitle "playchess.com"]
[Source "ChessBase"]
[SourceQuality "1"]
[TimeControl "5400+30"]

1. e4 {[%emt 0:00:00]} c5 {[%emt 0:00:00]} 2. Nf3 {[%emt 0:00:00]} Nc6 {[%emt 0:00:00]} 3. d4 {[%emt 0:00:00]} cxd4 {[%emt 0:00:00]} 4. Nxd4 {[%emt 0:00:00]} g6 {[%emt 0:00:00]} 5. c4 {[%emt 0:00:00]} Bg7 {[%emt 0:00:33]} 6. Be3 {[%emt 0:00:00]} Nf6 {[%emt 0:00:05]} 7. Nc3 {[%emt 0:00:00]} O-O {[%emt 0:00:10]} 8. Be2 {[%emt 0:00:20]} d6 {[%emt 0:00:05]} 9. O-O {[%emt 0:00:33]} Bd7 {[%emt 0:00:04]} 10. f3 {[%emt 0:01:28]} Nxd4 {[%emt 0:01:14]} 11. Bxd4 {[%emt 0:01:57]} Bc6 {[%emt 0:00:06]} 12. b4 {[%emt 0:01:25]} b6 {[%emt 0:01:18]} 13. Qd2 {[%emt 0:04:39]} Nd7 {[%emt 0:01:05]} 14. Bxg7 {[%emt 0:09:56]} Kxg7 {[%emt 0:00:09]} 15. f4 {[%emt 0:00:17]} Nf6 {[%emt 0:04:46]} 16. Qe3 {[%emt 0:06:56]} Qd7 {[%emt 0:03:07]} 17. f5 {[%emt 0:20:16]} e6 {[%emt 0:05:20]} 18. fxg6 {[%emt 0:01:46]} hxg6 {[%emt 0:06:42]} 19. e5 {[%emt 0:03:55]} Ng8 {[%emt 0:07:00]} 20. b5 {[%emt 0:04:56]} Bb7 {[%emt 0:01:08]} 21. Rad1 {[%emt 0:00:15]} Ne7 {[%emt 0:02:49]} 22. Rxd6 {[%emt 0:07:08]} Qc7 {[%emt 0:00:07]} 23. Bd3 {[%emt 0:02:10]} Rad8 {[%emt 0:01:11]} 24. Qf4 {[%emt 0:04:20]} Qc5+ {[%emt 0:02:15]} 25. Kh1 {[%emt 0:00:54]} Nf5 {[%emt 0:02:04]} 26. Bxf5 {[%emt 0:01:10]} exf5 {[%emt 0:00:06]} 27. Rfd1 {[%emt 0:01:28]} Rc8 {[%emt 0:02:02]} 28. e6 {[%emt 0:16:05]} Qxc4 {[%emt 0:03:06]} 29. Qe5+ {[%emt 0:00:07]} Kh7 {[%emt 0:03:33]} 30. R6d4 {[%emt 0:01:50]} f6 {[%emt 0:01:07]} 31. Qe3 {[%emt 0:08:21]} Qxc3 {[%emt 0:04:42]} 32. Rd7+ {[%emt 0:00:06]} Kg8 {[%emt 0:00:15]} 33. Qh6 {[%emt 0:00:35]} Bxg2+ {[%emt 0:00:06]} 34. Kxg2 {[%emt 0:00:16]} Qc2+ {[%emt 0:00:09]} 35. Kg1 {[%emt 0:01:42]} Qc5+ {[%emt 0:00:22]} 36. Kh1 {[%emt 0:00:14]} 1-0